Workbook

Sheet Instructions
B2: Instructions
B3: Use this calculator to adjust the rated heating and cooling system efficiency to remove fan power at rated conditions for input in simulation tools. This calculator uses the methods defined in ASHRAE Standard 90.1-2016 Appendix G, Section G3.1.2.1 to remove the supply fan energy from the COP of a packaged equipment.
B4: To use this calculator-
B5: 1 | C5: Select the equipment type from the 'Equipment Type' drop down.
B6: 2 | C6: Select the appropriate efficiency units from the 'Efficiency Units' drop down.
B7: 3 | C7: Enter the rated system efficiency using the appropriate efficiency units (for SEER, EER, AFUE, COP or HSPF)
B8: 4 | C8: Enter the system heating and cooling capacity as well as number of systems, as applicable.
B9: 5 | C9: The calculator adjusts the efficiency rating to remove the supply fan energy. Supply fan energy is modeled seperately in the Asset Score tool and Asset Score-TSPR tool.
B10: 6 | C10: User needs to provide inputs in tabs 'Calculator_COP', 'Calculator_TerminalEquipment' and 'Calculator_PlantEfficiency' for all applicable systems.
B11: 7 | C11: It calculates weighted averages for cooling efficiency, heating efficiency, fan power and minimum airflow fraction, which are displayed in tabs 'BlockSummary' and 'TerminalUnitSummary'
B12: 8 | C12: The calculated weighted averages for plant efficiency are displayed in tab 'PlantSummary'
C14: Cells highlighted in light green are optional user inputs
C15: Cells highlighted in dark green are optional user inputs
C16: Cells highlighted in blue are calculated values, to be enterred into the TSPR Tool

Sheet Backend (hidden)
B3: nCOPSystems | C3: =ROW(calcCOPTableEnd)-ROW(calcCOPRef1)-1 -> 21
B4: nChillers | C4: =ROW(calcChillerTableEnd)-ROW(calcChillerRef1)-1 -> 7
B5: nBoilers | C5: =ROW(calcBoilerTableEnd)-ROW(calcBoilerRef1)-1 -> 6
B6: nTUs | C6: =ROW(calcTUTableEnd)-ROW(calcTURef1)-1 -> 12
B7: nCopRows | C7: =ROW(calcCOPTableEnd)-ROW(calcCOPRef1)-1 -> 21
B8: nCopFormulas | C8: =COLUMN(calcCOPTableEnd2)-COLUMN(coolCapacityTableEnd)+1 -> 9
B9: nChillerFormulas | C9: =COLUMN(calcChillerTableEnd2)-COLUMN(chillCapacityTableEnd)+1 -> 3
B10: nBoilerFormulas | C10: =COLUMN(calcBoilerTableEnd2)-COLUMN(boilCapacityTableEnd)+1 -> 3
B11: nTUFormulas | C11: =COLUMN(calcTUTableEnd2)-COLUMN(tuAirflowProductTableEnd)+1 -> 2

Sheet Calculator_COP
B2: COP Calculator
C4: Cells highlighted in green are required user inputs
C5: Cells highlighted in blue are calculated values, to be enterred into the TSPR Tool
B7: Block Assignment | C7: Number of Systems | D7: System ID/ Equipment Tag | E7: Equipment Type | F7: Rated Cooling Capacity (Btu/h) | G7: Rated Heating Capacity (Btu/h) | H7: Design Supply Airflow (CFM)* | I7: Total System Fan Power (W/CFM)** | J7: Efficiency Units | K7: Rated Efficiency*** | L7: HIDDEN: Cooling Capacity | M7: HIDDEN: Heating Capacity | N7: HIDDEN: Cooling Product | O7: HIDDEN: Heating Product | P7: Hidden: Fan Airflow | Q7: Hidden: Fan Power Product | R7: HIDDEN: Thermal Efficiency Product | S7: COPnfcooling | T7: COPnfheat | U7: Thermal Efficiency
B8: Block A | C8: 4 | D8: System 1 | E8: PTAC | F8: 12000 | G8: 13500 | H8: 400 | I8: 0.35 | J8: EER | K8: 11.4 | L8: =IF(S8<>"NA",IFERROR($C8*F8,"NA"),"NA") -> 48000 | M8: =IF(AND(T8="NA",U8="NA"),"NA",IFERROR($C8*G8,"NA")) -> 54000 | N8: =IF(L8<>"NA",IFERROR(L8*S8,"NA"),"NA") -> 171483.84 | O8: =IF(M8<>"NA",IFERROR(M8*T8,"NA"),"NA") -> NA | P8: =IF(I8<=0,"NA",$H8*$C8) -> 1600 | Q8: =IF(I8<=0,"NA",$I8*$H8*$C8) -> 560 | R8: =IFERROR(IF(U8<=0,"NA",$U8*$G8*$C8),"NA") -> 43200 | S8: =IF(AND(OR(E8="PTAC",E8="PTHP"),J8="EER"),0.3322*K8-0.2145, IF(AND(J8="EER",OR(E8="Packaged Heat Pump",E8="Packaged Air Conditioner")),K8*0.0000000784*F8+0.338*K8, IF(AND(J8="SEER",OR(E8="Packaged Heat Pump",E8="Packaged Air Conditioner")),-0.0076*K8^2+0.3796*K8, IF(AND(E8="VRF System",J8="EER"),(K8/3.413)/(1-((cfm_per_tom/12000)*W_per_cfm)*K8),"NA")))) -> 3.57258 | T8: =IF(AND(E8="PTHP",J8="COP"),1.1329*K8-0.214, IF(AND(E8="Packaged Heat Pump",J8="COP"),K8*0.000000148*F8+1.062*K8, IF(AND(E8="Packaged Heat Pump",J8="HSPF"),-0.0296*K8^2+0.7134*K8, IF(AND(E8="VRF System",J8="COP"),K8/(1-((3.413*0.125*450/12000))*K8),"NA")))) -> NA | U8: 0.8
B9: Block A | C9: 2 | D9: System 2 | E9: PTAC | F9: 18000 | G9: 19000 | H9: 600 | I9: 0.35 | J9: EER | K9: 14 | L9: 36000 | M9: =IF(AND(T9="NA",U9="NA"),"NA",IFERROR($C9*G9,"NA")) -> 38000 | N9: 159706.8 | O9: NA | P9: =IF(I9<=0,"NA",$H9*$C9) -> 1200 | Q9: =IF(I9<=0,"NA",$I9*$H9*$C9) -> 420 | R9: =IFERROR(IF(U9<=0,"NA",$U9*$G9*$C9),"NA") -> 30780 | S9: 4.4363 | T9: =IF(AND(E9="PTHP",J9="COP"),1.1329*K9-0.214, IF(AND(E9="Packaged Heat Pump",J9="COP"),K9*0.000000148*F9+1.062*K9, IF(AND(E9="Packaged Heat Pump",J9="HSPF"),-0.0296*K9^2+0.7134*K9, IF(AND(E9="VRF System",J9="COP"),K9/(1-((3.413*0.125*450/12000))*K9),"NA")))) -> NA | U9: 0.81
B10: Block A | C10: 1 | D10: System 3 | E10: PTAC | F10: 15000 | G10: 17000 | H10: 500 | I10: 0.35 | J10: EER | K10: 11 | L10: 15000 | M10: 17000 | N10: 51595.5 | O10: NA | P10: 500 | Q10: 175 | R10: 14450 | S10: 3.4397 | T10: NA | U10: 0.85
B11: Block A | C11: 1 | D11: System 4 | E11: PTAC | F11: 15000 | G11: 16000 | H11: 500 | I11: 0.35 | J11: EER | K11: 11 | L11: 15000 | M11: 16000 | N11: 51595.5 | O11: NA | P11: 500 | Q11: 175 | R11: 12800 | S11: 3.4397 | T11: NA | U11: 0.8
B12: Block B | C12: 3 | D12: System 5 | E12: Packaged Air Conditioner | F12: 335000 | G12: 320000 | H12: 12000 | I12: 0.528 | J12: EER | K12: 10 | L12: 1005000 | M12: 960000 | N12: 3660853.2 | O12: NA | P12: 36000 | Q12: 19008 | R12: 768000 | S12: 3.64264 | T12: NA | U12: 0.8
B13: Block C | C13: 3 | D13: System 6 | E13: Packaged Heat Pump | F13: 240000 | G13: 260000 | H13: 8000 | I13: 0.652 | J13: EER | K13: 11.2 | L13: 720000 | M13: NA | N13: 2877364.224 | O13: NA | P13: 24000 | Q13: 15648 | R13: NA | S13: 3.9963392 | T13: NA | U13: NA
B14: Block C | C14: 3 | D14: System 6 | E14: Packaged Heat Pump | F14: 240000 | G14: 260000 | H14: 8000 | I14: 0.652 | J14: COP | K14: 3.2 | L14: NA | M14: 780000 | N14: NA | O14: 2739409.92 | P14: 24000 | Q14: 15648 | R14: NA | S14: NA | T14: 3.512064 | U14: NA
B15: Block C | C15: 2 | D15: System 7 | E15: Packaged Heat Pump | F15: 240000 | G15: 255000 | H15: 8000 | I15: 0.572 | J15: EER | K15: 11.2 | L15: 480000 | M15: NA | N15: 1918242.816 | O15: NA | P15: 16000 | Q15: 9152 | R15: NA | S15: 3.9963392 | T15: NA | U15: NA
B16: Block C | C16: 2 | D16: System 7 | E16: Packaged Heat Pump | F16: 240000 | G16: 255000 | H16: 8000 | I16: 0.572 | J16: COP | K16: 3.4 | L16: NA | M16: 510000 | N16: NA | O16: 1903099.68 | P16: 16000 | Q16: 9152 | R16: NA | S16: NA | T16: 3.731568 | U16: NA
B17: Block C | C17: 4 | D17: System 8 | E17: Packaged Heat Pump | F17: 90000 | G17: 95000 | H17: 3000 | I17: 0.648 | J17: EER | K17: 11.7 | L17: 360000 | M17: NA | N17: 1453375.872 | O17: NA | P17: 12000 | Q17: 7776 | R17: NA | S17: 4.0371552 | T17: NA | U17: NA
B18: Block C | C18: 4 | D18: System 8 | E18: Packaged Heat Pump | F18: 90000 | G18: 95000 | H18: 3000 | I18: 0.648 | J18: COP | K18: 3.6 | L18: NA | M18: 380000 | N18: NA | O18: 1471037.76 | P18: 12000 | Q18: 7776 | R18: NA | S18: NA | T18: 3.871152 | U18: NA
B19: Block C | C19: 2 | D19: System 9 | E19: Packaged Heat Pump | F19: 85000 | G19: 90000 | H19: 2800 | I19: 0.473 | J19: EER | K19: 11.2 | L19: 170000 | M19: NA | N19: 656240.256 | O19: NA | P19: 5600 | Q19: 2648.8 | R19: NA | S19: 3.8602368 | T19: NA | U19: NA
B20: Block C | C20: 2 | D20: System 9 | E20: Packaged Heat Pump | F20: 85000 | G20: 90000 | H20: 2800 | I20: 0.473 | J20: COP | K20: 3.2 | L20: NA | M20: 180000 | N20: NA | O20: 618958.08 | P20: 5600 | Q20: 2648.8 | R20: NA | S20: NA | T20: 3.438656 | U20: NA
B21: Block D | C21: 1 | D21: System 10 | E21: VRF System | F21: 240000 | G21: 245000 | H21: 5500 | I21: 0.32 | J21: EER | K21: 9.5 | L21: 240000 | M21: NA | N21: 699168.8506 | O21: NA | P21: 5500 | Q21: 1760 | R21: NA | S21: 2.913203544 | T21: NA | U21: NA
B22: Block D | C22: 1 | D22: System 11 | E22: VRF System | F22: 155000 | G22: 160000 | H22: 3500 | I22: 0.32 | J22: EER | K22: 10.4 | L22: 155000 | M22: NA | N22: 496516.9505 | O22: NA | P22: 3500 | Q22: 1120 | R22: NA | S22: 3.203335165 | T22: NA | U22: NA
B23: Block D | C23: 1 | D23: System 12 | E23: VRF System | F23: 240000 | G23: 220000 | H23: 5500 | I23: 0.32 | J23: COP | K23: 3.2 | L23: NA | M23: 220000 | N23: NA | O23: 741985.9718 | P23: 5500 | Q23: 1760 | R23: NA | S23: NA | T23: 3.372663508 | U23: NA
B24: Block D | C24: 1 | D24: System 13 | E24: VRF System | F24: 155000 | G24: 160000 | H24: 3500 | I24: 0.32 | J24: COP | K24: 3.2 | L24: NA | M24: 160000 | N24: NA | O24: 539626.1613 | P24: 3500 | Q24: 1120 | R24: NA | S24: NA | T24: 3.372663508 | U24: NA
B25: Block E | C25: 4 | D25: System 14 | E25: PTHP | F25: 15000 | G25: 15000 | H25: 350 | I25: 0.35 | J25: EER | K25: 12 | L25: 60000 | M25: NA | N25: 226314 | O25: NA | P25: 1400 | Q25: 490 | R25: NA | S25: 3.7719 | T25: =IF(AND(E25="PTHP",J25="COP"),1.1329*K25-0.214, IF(AND(E25="Packaged Heat Pump",J25="COP"),K25*0.000000148*F25+1.062*K25, IF(AND(E25="Packaged Heat Pump",J25="HSPF"),-0.0296*K25^2+0.7134*K25, IF(AND(E25="VRF System",J25="COP"),K25/(1-((3.413*0.125*450/12000))*K25),"NA")))) -> NA | U25: NA
B26: Block E | C26: 6 | D26: System 15 | E26: PTHP | F26: 18000 | G26: 19000 | H26: 400 | I26: 0.35 | J26: COP | K26: 3.5 | L26: NA | M26: 114000 | N26: NA | O26: 427631.1 | P26: 2400 | Q26: 840 | R26: NA | S26: NA | T26: 3.75115 | U26: NA
L27: NA | M27: 0 | N27: NA | O27: NA | P27: =IF(I27<=0,"NA",$H27*$C27) -> NA | Q27: =IF(I27<=0,"NA",$I27*$H27*$C27) -> NA | R27: =IFERROR(IF(U27<=0,"NA",$U27*$G27*$C27),"NA") -> NA | S27: NA | T27: NA
L28: =IF(S28<>"NA",IFERROR($C28*F28,"NA"),"NA") -> NA | M28: =IF(AND(T28="NA",U28="NA"),"NA",IFERROR($C28*G28,"NA")) -> 0 | N28: =IF(L28<>"NA",IFERROR(L28*S28,"NA"),"NA") -> NA | O28: =IF(M28<>"NA",IFERROR(M28*T28,"NA"),"NA") -> NA | P28: =IF(I28<=0,"NA",$H28*$C28) -> NA | Q28: =IF(I28<=0,"NA",$I28*$H28*$C28) -> NA | R28: =IFERROR(IF(U28<=0,"NA",$U28*$G28*$C28),"NA") -> NA | S28: =IF(AND(OR(E28="PTAC",E28="PTHP"),J28="EER"),0.3322*K28-0.2145, IF(AND(J28="EER",OR(E28="Packaged Heat Pump",E28="Packaged Air Conditioner")),K28*0.0000000784*F28+0.338*K28, IF(AND(J28="SEER",OR(E28="Packaged Heat Pump",E28="Packaged Air Conditioner")),-0.0076*K28^2+0.3796*K28, IF(AND(E28="VRF System",J28="EER"),(K28/3.413)/(1-((cfm_per_tom/12000)*W_per_cfm)*K28),"NA")))) -> NA | T28: NA
B30: Note: Duplicate this tab to analyze additional systems
B31: * Design Supply Airflow (CFM): This is the main supply airflow (CFM) at design conditions.
B32: ** Total System Fan Power (W/CFM): This is the input electric power for all fans (including supply, return, relief fans and series terminal fan) when operated at fan system design conditions divided by the supply airflow rate
B33: *** Rated efficiency: For VRF Systems and Air Source Heat Pumps, this is the COP at 47°F db/43°F wb Outdoor Air
B34: Calculator Assumptions and Calculation Process
B36: Packaged Terminal Systems (Tables C403.3.2(3) in WSEC)
B37: For Packaged Terminal Air Conditioners (PTACs) and Packaged Terminal Heat Pumps (PTHP) COPnfcooling = 0.3322 x EER – 0.2145 For Heat Pumps- COPnfheating = 1.1329*COP – 0.2140
B41: Packaged Systems (Tables C403.3.2(1)A, C403.3.2(2) in WSEC)
B42: This tool uses the methods defined in ASHRAE Standard 90.1-2016 Appendix G, Section G3.1.2.1 to remove the supply fan energy from the COP for all packaged equipment including packaged single zone AC, packaged single zone HP and packaged milti-zone VAV systems.
B44: For Packaged DX Equipment COPnfcooling = 7.84E-8 x EER x Q + 0.338 x EER COPnfcooling = -0.0076 x SEER2 + 0.3796 x SEER For Heat Pumps- COPnfheating = 1.48E-7 x COP47 x Q + 1.062 x COP47 COPnfheating = -0.0296 x HSPF2 + 0.7134 x HSPF
B50: Where- COPnfcooling and COPnfheating are the packaged HVAC equipment cooling and heating energy efficiency,which excludes supply fan power, and Q is the AHRI-rated cooling capacity in Btu/h EER, SEER, COP, and HSPF are specified at AHRI test conditions.
B54: VRF Systems (Table C403.3.2(1)B, C403.3.2(1)C in WSEC)
B55: This calculator assumes an indoor fan power of 0.125 W/CFM and airflow as 450 CFM/ton. The rated efficiency is adjusted to remove the supply fan power.

Sheet Calculator_PlantEfficiency
B2: Chiller and Boiler Efficiency Calculator
B3: This tab provides
B4: 1 | C4: A calculator for converting full load chiller efficiency from kW/Ton and EER to COP.
B5: 2 | C5: A calculator for converting Boiler Efficiency from AFUE or Combustion Efficiency (Ec) to Thermal Efficiency (Et)
B7: Chiller COP Calculator
C9: Cells highlighted in green are required user inputs
C10: Cells highlighted in blue are calculated values, to be enterred into the TSPR Tool
B12: Plant Loop Name | C12: System ID/ Equipment Tag | D12: Equipment Type | E12: Block Assignment | F12: Number of Pieces of Equipment | G12: Rated Cooling Capacity (tons) | H12: Efficiency Units | I12: Rated Efficiency* | J12: HIDDEN: Total Capacity | K12: HIDDEN: Capacity Product | L12: COPcooling
B13: Chiller Water Plant Loop 1 | C13: Chiller 1 | D13: Air Cooled Chiller | E13: Block D | F13: 2 | G13: 225 | H13: EER | I13: 12 | J13: =IF(G13<>"",F13*G13,"NA") -> 450 | K13: =IFERROR(J13*L13,"NA") -> 1582.649472 | L13: =IF(I13="","NA", IF(H13="EER",I13/3.412, IF(H13="COP",I13, IF(H13="kW/ton", (12/I13)/3.412,"NA")))) -> 3.516998828
B14: Chiller Water Plant Loop 1 | C14: Chiller 2 | D14: Air Cooled Chiller | E14: Block D | F14: 1 | G14: 160 | H14: EER | I14: 11 | J14: =IF(G14<>"",F14*G14,"NA") -> 160 | K14: =IFERROR(J14*L14,"NA") -> 515.8264947 | L14: =IF(I14="","NA", IF(H14="EER",I14/3.412, IF(H14="COP",I14, IF(H14="kW/ton", (12/I14)/3.412,"NA")))) -> 3.223915592
B15: Chiller Water Plant Loop 2 | C15: Chiller 3 | D15: Water Cooled Chiller | E15: Block E | F15: 1 | G15: 200 | H15: kW/Ton | I15: 0.66 | J15: 200 | K15: 1065.757221 | L15: 5.328786103
B16: Chiller Water Plant Loop 2 | C16: Chiller 4 | D16: Water Cooled Chiller | E16: Block E | F16: 1 | G16: 450 | H16: kW/Ton | I16: 0.61 | J16: 450 | K16: 2594.507332 | L16: 5.765571849
J17: =IF(G17<>"",F17*G17,"NA") -> NA | K17: NA | L17: NA
J18: =IF(G18<>"",F18*G18,"NA") -> NA | K18: NA | L18: =IF(I18="","NA", IF(H18="EER",I18/3.412, IF(H18="COP",I18, IF(H18="kW/ton", (12/I18)/3.412,"NA")))) -> NA
J19: =IF(G19<>"",F19*G19,"NA") -> NA | K19: =IFERROR(J19*L19,"NA") -> NA | L19: =IF(I19="","NA", IF(H19="EER",I19/3.412, IF(H19="COP",I19, IF(H19="kW/ton", (12/I19)/3.412,"NA")))) -> NA
B21: Instructions
C22: Use the 'Add Chiller' button to add additional cooling plant equipment
C23: All inputs highlighted in green need to be provided for the calculator to work.
C24: After completing data entry, refer to the 'Plant Summary' tab for the equipment capacity weighted efficiency value for input into the Asset Score Tool and Asset Score-TSPR Tool.
C25: *For WA State TSPR Compliance Analysis, the Rated Efficiency for chillers, is the Full Load Path A efficiency as shown in WSEC Table C403.3.2(7)
B30: Boiler Thermal Efficiency Calculator
C32: Cells highlighted in green are required user inputs
C33: Cells highlighted in blue are calculated values, to be enterred into the TSPR Tool
B35: Plant Loop Name | C35: System ID/ Equipment Tag | D35: Equipment Type | E35: Block Assignment | F35: Number of Pieces of Equipment | G35: Rated Heating Capacity (Btu/hr) | H35: Efficiency Units | I35: Rated Efficiency** | J35: HIDDEN: Total Capacity | K35: HIDDEN: Capacity Product | L35: Thermal Efficiency
B36: Hot Water Plant Loop 1 | C36: Boiler 1 | D36: Boiler, Hot Water | E36: Block D | F36: 2 | G36: 250000 | H36: AFUE | I36: 0.82 | J36: =IF(G36<>"",F36*G36,"NA") -> 500000 | K36: =IFERROR(J36*L36,"NA") -> 410300.7 | L36: =IF(I36="","NA", IF(H36="AFUE",(0.0051427 *I36*100 ) + 0.3989, IF(H36="Et",I36, IF(H36="Ec",(I36*100-2)/100,"NA")))) -> 0.8206014
B37: Hot Water Plant Loop 1 | C37: Boiler 2 | D37: Boiler, Hot Water | E37: Block D | F37: 1 | G37: 2600000 | H37: Ec | I37: 0.84 | J37: =IF(G37<>"",F37*G37,"NA") -> 2600000 | K37: =IFERROR(J37*L37,"NA") -> 2132000 | L37: =IF(I37="","NA", IF(H37="AFUE",(0.0051427 *I37*100 ) + 0.3989, IF(H37="Et",I37, IF(H37="Ec",(I37*100-2)/100,"NA")))) -> 0.82
B38: Hot Water Plant Loop 2 | C38: Boiler 3 | D38: Boiler, Hot Water | E38: Block E | F38: 1 | G38: 1500000 | H38: AFUE | I38: 0.82 | J38: 1500000 | K38: 1230902.1 | L38: 0.8206014
B39: Hot Water Plant Loop 2 | C39: Boiler 4 | D39: Boiler, Hot Water | E39: Block E | F39: 1 | G39: 2500000 | H39: Et | I39: 0.8 | J39: 2500000 | K39: 2000000 | L39: 0.8
J40: NA | K40: NA | L40: NA
J41: =IF(G41<>"",F41*G41,"NA") -> NA | K41: NA | L41: =IF(I41="","NA", IF(H41="AFUE",(0.0051427 *I41*100 ) + 0.3989, IF(H41="Et",I41, IF(H41="Ec",(I41*100-2)/100,"NA")))) -> NA
B43: Instructions
C44: Use the 'Add Boiler' button to add additional heating plant equipment
C45: All inputs highlighted in green need to be provided for the calculator to work.
C46: After completing data entry, refer to the 'Plant Summary' tab for the equipment capacity weighted efficiency value for input into the Asset Score Tool and Asset Score-TSPR Tool.
C47: ** For WA State TSPR Compliance Analysis, the Rated Efficiency for boilers, is as shown in WSEC Table 403.3.2(5)

Sheet Calculator_TerminalUnits
C5: Calculator: Terminal Units
D8: Cells highlighted in dark green are inputs
D9: Cells highlighted in blue are calculated values, to be enterred into the TSPR Tool
C11: Use this table to enter information of all terminal units serving a block. The 'Terminal Unit Summary' tab will display the weighted average for minimum airflow fraction. Use the 'Add Terminal Unit' button to analyze additional blocks.
C15: Block Name | D15: System ID/ Equipment Tag | E15: Terminal Unit Peak Design Airflow (CFM) | F15: Terminal Unit Minimum Airflow (CFM) | G15: Minimum Airflow Fraction | H15: Hidden: Airflow Product | I15: Hidden: OA Fraction Product
C16: Block F | D16: Terminal Unit-1 | E16: 600 | F16: 150 | G16: =IF(E16="","",F16/E16) -> 0.25 | H16: =IFERROR($E16*F16,0) -> 90000 | I16: =IFERROR($E16*G16,0) -> 150
C17: Block F | D17: Terminal Unit-2 | E17: 700 | F17: 175 | G17: =IF(E17="","",F17/E17) -> 0.25 | H17: =IFERROR($E17*F17,0) -> 122500 | I17: =IFERROR($E17*G17,0) -> 175
C18: Block F | D18: Terminal Unit-3 | E18: 450 | F18: 150 | G18: 0.3333333333 | H18: 67500 | I18: 150
C19: Block F | D19: Terminal Unit-4 | E19: 1200 | F19: 300 | G19: 0.25 | H19: 360000 | I19: 300
C20: Block G | D20: Terminal Unit-5 | E20: 800 | F20: 200 | G20: 0.25 | H20: 160000 | I20: 200
C21: Block G | D21: Terminal Unit-6 | E21: 900 | F21: 225 | G21: 0.25 | H21: 202500 | I21: 225
C22: Block G | D22: Terminal Unit-7 | E22: 700 | F22: 175 | G22: 0.25 | H22: 122500 | I22: 175
C23: Block G | D23: Terminal Unit-8 | E23: 450 | F23: 130 | G23: 0.2888888889 | H23: 58500 | I23: 130
C24: Block G | D24: Terminal Unit-9 | E24: 600 | F24: 150 | G24: 0.25 | H24: 90000 | I24: 150
C25: Block G | D25: Terminal Unit-10 | E25: 1400 | F25: 350 | G25: 0.25 | H25: 490000 | I25: 350
H26: 0 | I26: 0
H27: =IFERROR($E27*F27,0) -> 0 | I27: =IFERROR($E27*G27,0) -> 0

Sheet BlockSummary
D3: Block Summary
E5: Cells highlighted in dark green are required inputs.
E6: Cells highlighted in blue are calculated values, to be enterred into the TSPR Tool
D8: Instructions: Click on the 'Calculate Block Summary' button to calculate weighted average values. Enter these values into the Asset Score tool for each applicable block.
D12: Block Name | E12: System Type | F12: Weighted Average COPnfcooling | G12: Weighted Average COPnfheat | H12: Thermal Efficiency | I12: Total System Fan Power (W/CFM)*
D13: Block A | E13: PTAC | F13: 3.81 | G13: N/A | H13: 0.81 | I13: 0.35
D14: Block B | E14: Packaged Air Conditioner | F14: 3.64 | G14: N/A | H14: 0.8 | I14: 0.528
D15: Block C | E15: Packaged Heat Pump | F15: 3.99 | G15: 3.64 | H15: N/A | I15: 0.612
D16: Block D | E16: VRF System | F16: 3.03 | G16: 3.25 | H16: N/A | I16: 0.32
D17: Block E | E17: PTHP | F17: 3.77 | G17: 3.75 | H17: N/A | I17: 0.35

Sheet PlantSummary
C4: Plant Loop Summary
D6: Cells highlighted in green are required inputs
D7: Cells highlighted in blue are calculated values, to be enterred into the TSPR Tool
C9: Instructions: Click on the 'Calculate Plant Summary' button to calculate weighted average values. Enter these values into the Asset Score tool for each applicable plant loop.
C13: Plant Loop Name | D13: Plant Loop Type | E13: Cooling COP | F13: Thermal Efficiency
C14: Chiller Water Plant Loop 1 | D14: Air Cooled Chiller | E14: 3.029 | F14: NA
C15: Chiller Water Plant Loop 2 | D15: Water Cooled Chiller | E15: 5.631 | F15: NA
C16: Hot Water Plant Loop 1 | D16: Boiler, Hot Water | E16: NA | F16: 0.82
C17: Hot Water Plant Loop 2 | D17: Boiler, Hot Water | E17: NA | F17: 0.808

Sheet TerminalUnitSummary
D2: Terminal Unit Summary
D8: Instructions: Click on the 'Calculate Terminal Unit Summary' button to calculate weighted average values.. Enter these values into the Asset Score tool for each applicable block.
D11: Block Name | E11: Terminal Unit Minimum Airflow (CFM) | F11: Minimum Airflow Fraction
D12: Block F | E12: 216.95 | F12: 0.26
D13: Block G | E13: 231.65 | F13: 0.25

Sheet Lists (hidden)
B2: System Type
B3: PTAC | C3: SEER | D3: Single Zone | F3: Chiller Efficiency Units
B4: PTHP | C4: EER | D4: Multi-Zone with Reheat | F4: EER | G4: Air Cooled Chiller | H4: Boiler, Hot Water | I4: AFUE
B5: Packaged Air Conditioner | C5: HSPF | F5: kW/Ton | G5: Water Cooled Chiller | H5: Boiler, Steam | I5: Ec
B6: Packaged Heat Pump | C6: COP | F6: COP | I6: Et
B7: VRF System
B12: Add a 'Add System' button on the 'CalculatorCOP' table which would add a row to the same table
B13: Add a 'Add Plant Loop' button on the 'CalculatorPlantEfficiency' table which would add a row to the same table
B14: Add a 'Add Yterminal Unit' button on the 'Calculator_TerminalUnits' table which would add a row to the same table. Weighted average calculations will be done for each block.
B16: This tool will be developed further, so that a user needs to provide information only on the 'Calculator_COP', 'Calculator_PlantEfficiency' and 'Calculator_TerminalUnits' tabs. The tabs 'Block Summary' and 'PlantSummary' would be automatically populated with one row for each unique blocks with the weighted average values for COPnfHeating, COPnfCooling, Thermal Efficiency, Total System Fan Power and average minimum airflow fraction would be displayed.
